fUSD/lending_fUSD_20251105
["ID","MTS","AMOUNT","RATE_DAILY","PERIOD"]
[393234856,1762363832218,-1680.66735613,0.00015,2]
[393234857,1762363832232,-2301.68908677,0.00015,2]
[393234858,1762363832254,-29637.79034367,0.00015,2]
[393234859,1762363832266,-20105.16241884,0.00015,2]
[393234860,1762363832280,-11335.85057851,0.00015,2]
[393234861,1762363832308,-370.0,0.00015,2]
[393234862,1762363833573,-324.26015561,0.00015,2]
[393234863,1762363834046,-668.89793741,0.00015,2]
[393234864,1762363834139,-297.85918732,0.00015,2]
[393234952,1762363838057,-2694.6,0.00015,2]
[393234953,1762363838112,-10228.3334292,0.00015,2]
[393234955,1762363838166,-529.74999985,0.00015,2]
[393234956,1762363838223,-1811.80915,0.00015,2]
[393234958,1762363838600,-201.36621981,0.00015,2]
[393234971,1762363840068,-1615.74810614,0.00015,2]
[393234983,1762363840176,-55133.05000002,0.00015,2]
[393234986,1762363840188,-3203.16883971,0.00015,2]
[393234988,1762363840199,-302.0999999,0.00015,2]
[393234990,1762363840210,-17137.82728639,0.00015,2]
[393235001,1762363841380,-559354.79362831,0.00015,2]
[393235002,1762363841391,-15307.73849599,0.00015,2]
[393235003,1762363841403,-2230.09996515,0.00015,2]
[393235004,1762363841414,-2243.95,0.00015,2]
[393235005,1762363841425,-2627.6266132,0.00015,2]
[393235006,1762363841456,-151.20378019,0.00015,2]
[393235022,1762363843179,-7648.00611916,0.00015,2]
[393235023,1762363843291,-51921.05918085,0.00015,2]
[393235024,1762363843347,-1906.3479154,0.00015,2]
[393235025,1762363843359,-48415.87761829,0.00015,2]
[393235026,1762363843402,-349.24300055,0.00015,2]
[393235027,1762363843413,-464.76347741,0.00015,2]
[393235028,1762363843424,-3938.5914395,0.00015,2]
[393235029,1762363843435,-742.74876492,0.00015,2]
[393235030,1762363843563,-305497.81619843,0.00015,2]
[393235031,1762363843585,-664627.99270556,0.00015,2]
[393235046,1762363843813,-235.86870532,0.00015,2]
[393235056,1762363845878,-164.46490794,0.00015,2]
[393235064,1762363846217,-2098.71502061,0.00015,2]
[393235065,1762363846229,-500.0,0.00015,2]
[393235066,1762363846240,-566.58838633,0.00015,2]
[393235067,1762363846252,-342.9448965,0.00015,2]
[393235068,1762363846268,-251.27200006,0.00015,2]
[393235069,1762363846286,-4100.0,0.00015,2]
[393235070,1762363846488,-8954.27379417,0.00015,2]
[393235071,1762363846543,-732784.50200604,0.00015,2]
[393235072,1762363846599,-616.41039104,0.00015,2]
[393235073,1762363846610,-38568.3056167,0.00015,2]
[393235076,1762363849414,-216.03,0.00015,2]
[393235081,1762363852307,-269.20387397,0.00015,2]
[393235085,1762363855582,-179.96004378,0.00015,2]
[393235087,1762363859689,-318.52755499,0.00015,2]
[393235090,1762363861216,-370.48179252,0.00015,2]
[393235091,1762363864394,-303.41188575,0.00015,2]
[393235095,1762363868100,-166.66,0.00015,2]
[393235097,1762363871239,-178.01247187,0.00015,2]
[393235100,1762363873203,-372.67651928,0.00015,2]
[393235102,1762363875878,-151.0,0.00015,2]
[393235103,1762363879700,-166.66,0.00015,2]
[393235104,1762363882174,179.92860161,0.000149,2]
[393235105,1762363883340,-210.6412385,0.00015,2]
[393235106,1762363887207,-185.93676109,0.00015,2]
[393235108,1762363889359,-214.14349367,0.00015,2]
[393235110,1762363891450,-233.0896263,0.00015,2]
[393235112,1762363893583,2115.75329729,0.000147,2]
[393235113,1762363893608,3594.19670271,0.000147,2]
[393235114,1762363893651,301.83,0.000147,2]
[393235115,1762363894702,-300.76586344,0.00015,2]
[393235117,1762363896216,-156.91050257,0.00015,2]
[393235118,1762363897879,-151.0,0.00015,2]
[393235120,1762363900608,-246.1582886,0.00015,2]
[393235121,1762363903960,-219.46346885,0.00015,2]
[393235124,1762363912531,-384.44191324,0.00015,2]
[393235125,1762363914366,-300.43995928,0.00015,2]
[393235127,1762363916069,-200.96760408,0.00015,2]
[393235129,1762363918639,-280.20396988,0.00015,2]
[393235130,1762363920676,-261.01570103,0.00015,2]
[393235132,1762363922363,300.0,0.00014999,2]
[393235133,1762363923960,-253.02582709,0.00015,2]
[393235134,1762363925517,-319.79603012,0.00015,2]
[393235136,1762363926884,4813.18988017,0.000149,2]
[393235137,1762363928710,-181.47555507,0.00015,2]
[393235138,1762363930233,-219.98496623,0.00015,2]
[393235139,1762363932525,-343.98429881,0.00015,2]
[393235142,1762363935326,-173.79895283,0.00015,2]
[393235144,1762363941384,673.89367827,0.00013001,2]
[393235146,1762363942051,547.39977749,0.000149,2]
[393235147,1762363943137,-166.66,0.00015,2]
[393235150,1762363945185,-185.97,0.00015,2]
[393235152,1762363949696,-250.00893,0.00015,2]
[393235158,1762363955334,2886.98764821,0.000149,2]
[393235159,1762363956262,-199.40832095,0.00015,2]
[393235160,1762363957506,154.15112986,0.000149,2]
[393235161,1762363958148,-311.98013284,0.00015,2]
[393235163,1762363960740,624.387886,0.00014999,2]
[393235164,1762363960763,186.612114,0.00014999,2]
[393235166,1762363962505,-195.00000016,0.00015,2]
[393235167,1762363964656,-151.0,0.00015,2]
[393235184,1762363981444,300.0,0.00014999,2]
[393235185,1762363981565,-310.52501261,0.00015,2]
[393235188,1762363982031,164.46490794,0.000149,2]
[393235191,1762363983651,150.0,0.00014999,2]
[393235194,1762363985236,-226.23568842,0.00015,2]
[393235196,1762363989325,-164.27669535,0.00015,2]
[393235198,1762363990870,-160.99919687,0.00015,2]
[393235201,1762363994038,-435.45163064,0.00015,2]
[393235208,1762363996176,-441.90929933,0.00015,2]
[393235209,1762363998325,-208.38015668,0.00015,2]
[393235210,1762363999884,-466.3439511,0.00015,2]
[393235211,1762364005222,-333.34,0.00015,2]
[393235218,1762364014815,-166.66,0.00015,2]
[393235219,1762364020483,-153.2365562,0.00015,2]
[393235220,1762364022399,-154.48978965,0.00015,2]
[393235221,1762364025093,-404.78074968,0.00015,2]
[393235224,1762364032757,-277.64257055,0.00015,2]
[393235226,1762364036323,-322.35742945,0.00015,2]
[393235229,1762364038328,-202.83002145,0.00015,2]
[393235232,1762364039869,-300.0378894,0.00015,2]
[393235238,1762364056646,-166.66,0.00015,2]
[393235239,1762364058232,-747.08911279,0.00015,2]
[393235240,1762364060487,-339.88676447,0.00015,2]
[393235241,1762364062003,-151.0,0.00015,2]
[393235242,1762364064036,-250.0,0.00015,2]
[393235244,1762364069769,-151.0,0.00015,2]
[393235245,1762364071356,-151.0,0.00015,2]
[393235246,1762364073459,-151.0,0.00015,2]
[393235247,1762364075545,-166.66,0.00015,2]
[393235248,1762364077220,-166.66,0.00015,2]
[393235250,1762364079349,-216.03,0.00015,2]
[393235252,1762364083952,-203.62329649,0.00015,2]
[393235253,1762364089307,2085.260134,0.00014925,2]
[393235254,1762364090006,-300.0,0.00015,2]
[393235256,1762364092750,-283.05108697,0.00015,2]
[393235257,1762364095721,-370.48060137,0.00015,2]
[393235258,1762364097817,-188.90281116,0.00015,2]
[393235259,1762364100017,-191.38165164,0.00015,2]
[393235260,1762364101345,300.0,0.00014999,2]
[393235261,1762364101574,300.0,0.00014999,2]
[393235262,1762364104920,1200.0,0.00014999,2]
[393235263,1762364106150,-300.0,0.00015,2]
[393235264,1762364106287,1537.439448,0.00014925,2]
[393235265,1762364108931,-205.01292417,0.00015,2]
[393235266,1762364122520,505.012924,0.00014925,2]
[393235267,1762364123381,-200.91891303,0.00015,2]
[393235268,1762364127166,-203.01102594,0.00015,2]
[393235273,1762364139551,403.929939,0.00014925,2]
[393235274,1762364140973,-195.0,0.00015,2]
[393235275,1762364143448,-166.66,0.00015,2]
[393235282,1762364155104,195.0,0.00014925,2]
[393235283,1762364155886,-223.66125096,0.00015,2]
[393235286,1762364162921,-150.0,0.00014999,2]
[393235297,1762364178846,-151.0,0.00015,2]
[393235300,1762364181124,-8484.00782774,0.00015,2]
[393235301,1762364181462,-151.0,0.00015,2]
[393235302,1762364183707,-166.66,0.00015,2]
[393235306,1762364186908,-158.70487889,0.00015,2]
[393235307,1762364187195,-10000.01,0.00015,2]
[393235308,1762364189028,-258.9016315,0.00015,2]
[393235309,1762364191275,-323.26436217,0.00015,2]
[393235311,1762364192885,-164.75012398,0.00015,2]
[393235312,1762364193303,-10000.01,0.00015,2]
[393235314,1762364194453,-294.37900346,0.00015,2]
[393235316,1762364196098,-188.7962648,0.00015,2]
[393235317,1762364197548,-161.55758847,0.00015,2]
[393235319,1762364200010,-157.0578332,0.00015,2]
[393235322,1762364202404,-174.31790982,0.00015,2]
[393235327,1762364204565,-167.34996442,0.00015,2]
[393235328,1762364206100,-344.33175328,0.00015,2]
[393235329,1762364209584,-418.89352201,0.00015,2]
[393235331,1762364213371,-213.54204674,0.00015,2]
[393235332,1762364213427,333.0,0.00018,30]
[393235334,1762364214694,-193.32633915,0.00015,2]
[393235338,1762364217502,161.93574144,0.000149,2]
[393235339,1762364218732,-285.56112641,0.00015,2]
[393235340,1762364220328,-194.99544923,0.00015,2]
[393235346,1762364225322,151.0,0.00014991,2]
[393235347,1762364225914,151.0,0.00014991,2]
[393235348,1762364226100,-302.46887359,0.00015,2]
[393235350,1762364226535,151.0,0.00014991,2]
[393235352,1762364227160,151.0,0.00014991,2]
[393235353,1762364227781,151.0,0.00014991,2]
[393235354,1762364228426,151.0,0.00014991,2]
[393235355,1762364228740,-300.0,0.00015,2]
[393235356,1762364229077,151.0,0.00014991,2]
[393235357,1762364229671,151.0,0.00014991,2]
[393235359,1762364230291,151.0,0.00014991,2]
[393235361,1762364230709,-300.0,0.00015,2]
[393235363,1762364231491,151.0,0.00014991,2]
[393235364,1762364231600,151.0,0.00014991,2]
[393235365,1762364232196,151.0,0.00014991,2]
[393235366,1762364232790,151.0,0.00014991,2]
[393235367,1762364232824,-251.77247408,0.00015,2]
[393235369,1762364233407,151.0,0.00014991,2]
[393235370,1762364234308,-354.72039396,0.00015,2]
[393235371,1762364234566,151.0,0.00014991,2]
[393235372,1762364235209,151.0,0.00014991,2]
[393235373,1762364235835,151.0,0.00014991,2]
[393235376,1762364236459,151.0,0.00014991,2]
[393235377,1762364237127,151.0,0.00014991,2]
[393235379,1762364237765,151.0,0.00014991,2]
[393235380,1762364237851,166.182541,0.000149,2]
[393235383,1762364241412,-390.50040537,0.00015,2]
[393235387,1762364243576,-165.17624386,0.00015,2]
[393235388,1762364245122,-216.94891303,0.00015,2]
[393235389,1762364246659,-151.0,0.00015,2]
[393235393,1762364248714,-152.66510495,0.00015,2]
[393235405,1762364261093,769.0,0.00014999,2]
[393235406,1762364261930,-193.0,0.00015,2]
[393235409,1762364264779,-205.33489505,0.00015,2]
[393235424,1762364281545,-580.74202098,0.00015,2]
[393235426,1762364282574,300.0,0.00014999,2]
[393235429,1762364285015,-486.49205072,0.00015,2]
[393235432,1762364288308,-210.61956548,0.00015,2]
[393235437,1762364290243,-151.0,0.00015,2]
[393235440,1762364294647,-287.0889021,0.00015,2]
[393235441,1762364296623,224.682911,0.00014925,2]
[393235480,1762364311523,-151.0,0.00015,2]
[393235484,1762364314245,-166.66,0.00015,2]
[393235485,1762364315791,-151.0,0.00015,2]
[393235489,1762364319686,-151.0,0.00015,2]
[393235491,1762364322425,-166.31519297,0.00015,2]
[393235497,1762364325770,-293.75208611,0.00015,2]
[393235507,1762364341517,3467.0911318,0.000149,2]
[393235508,1762364341845,150.0,0.00014999,2]
[393235509,1762364342124,-354.19304193,0.00015,2]
[393235511,1762364342602,300.0,0.00014999,2]
[393235513,1762364344118,-184.73967899,0.00015,2]
[393235517,1762364348613,-154.17,0.00015,2]
[393235519,1762364350824,-181.42577871,0.00015,2]
[393235529,1762364371127,150.0,0.00014999,2]
[393235551,1762364401323,300.0,0.00014999,2]
[393235552,1762364401913,991.11767476,0.00014999,2]
[393235553,1762364401935,208.88232524,0.00014999,2]
[393235556,1762364407343,667.85,0.0001499,2]
[393235557,1762364407562,667.85,0.0001499,2]
[393235563,1762364437288,4934.24666584,0.000149,2]
[393235578,1762364466338,500.0,0.00017641,30]
[393235579,1762364466833,500.0,0.00017641,30]
[393235580,1762364467343,498.51988426,0.00017641,30]
[393235586,1762364493615,3521.18100892,0.000147,2]
[393235587,1762364493639,1046.77899108,0.000147,2]
[393235588,1762364493681,241.464,0.000147,2]
[393235593,1762364523775,150.0,0.00014999,2]
[393235595,1762364536758,-151.0,0.00014991,2]
[393235596,1762364536887,-8259.76700892,0.00015,2]
[393235597,1762364542503,-151.0,0.00014991,2]
[393235598,1762364542532,-151.0,0.00014991,2]
[393235599,1762364542560,-151.0,0.00014991,2]
[393235600,1762364542588,-151.0,0.00014991,2]
[393235601,1762364542621,-151.0,0.00014991,2]
[393235602,1762364542649,-151.0,0.00014991,2]
[393235603,1762364542677,-151.0,0.00014991,2]
[393235604,1762364542706,-151.0,0.00014991,2]
[393235605,1762364542735,-151.0,0.00014991,2]
[393235606,1762364542899,-151.0,0.00014991,2]
[393235607,1762364542908,-7131.01,0.00015,2]
[393235609,1762364545640,-151.0,0.00014991,2]
[393235610,1762364545671,-151.0,0.00014991,2]
[393235611,1762364545700,-151.0,0.00014991,2]
[393235612,1762364545730,-151.0,0.00014991,2]
[393235613,1762364545840,151.0,0.00014991,2]
[393235615,1762364546855,151.0,0.00014991,2]
[393235616,1762364547454,151.0,0.00014991,2]
[393235617,1762364548090,151.0,0.00014991,2]
[393235618,1762364549212,151.0,0.00014991,2]
[393235621,1762364554422,164.25140421,0.000149,2]
[393235625,1762364593069,216.19528125,0.000149,2]
[393235633,1762364701325,1200.0,0.00014999,2]
[393235634,1762364701589,300.0,0.00014999,2]
[393235635,1762364701658,300.0,0.00014999,2]
[393235636,1762364702069,150.0,0.00014999,2]
[393235651,1762364727876,3876.51683281,0.000149,2]
[393235657,1762364763662,300.0,0.00014999,2]
[393235663,1762364808885,20000.0,0.000165,3]
[393235665,1762364821598,300.0,0.00014999,2]
[393235666,1762364827234,681.33041641,0.000149,2]
[393235667,1762364833199,151.0,0.00014991,2]
[393235668,1762364833883,151.0,0.00014991,2]
[393235669,1762364834893,151.0,0.00014991,2]
[393235672,1762364835519,157.41710077,0.00014991,2]
[393235675,1762364847298,164.46490794,0.000149,2]
[393235678,1762364879864,20000.0,0.000165,3]
[393235679,1762364881406,300.0,0.00014999,2]
[393235680,1762364881756,150.0,0.00014999,2]
[393235682,1762364891292,164.48457708,0.000149,2]
[393235684,1762364894117,166.66,0.00014588,2]
[393235685,1762364894323,166.66,0.00014895,2]
[393235686,1762364898571,213.13516511,0.000149,2]
[393235727,1762364917790,740.14571863,0.00014999,2]
[393235728,1762364917816,10000.01,0.00014999,2]
[393235729,1762364917839,10000.01,0.00014999,2]
[393235730,1762364917862,10000.01,0.00014999,2]
[393235731,1762364917887,10000.01,0.00014999,2]
[393235732,1762364917910,10000.01,0.00014999,2]
[393235733,1762364917933,10000.01,0.00014999,2]
[393235734,1762364917956,10000.01,0.00014999,2]
[393235735,1762364917979,10000.01,0.00014999,2]
[393235737,1762364918000,10000.01,0.00014999,2]
[393235739,1762364918552,-195.89901029,0.00014999,2]
[393235747,1762364921225,-246.50886154,0.00014999,2]
[393235751,1762364924200,-9080.75859579,0.00014999,2]
[393235752,1762364924772,-338.64137393,0.00014999,2]
[393235753,1762364926154,-10000.01,0.00014999,2]
[393235754,1762364926263,-10000.01,0.00014999,2]
[393235755,1762364926403,-4480.24751522,0.00014999,2]
[393235756,1762364927368,195.87358005,0.00014999,2]
[393235759,1762364947601,5341.4389678,0.000149,2]
[393235765,1762364996102,-4462.69745215,0.00015,2]
[393235767,1762365001567,-689.0006923,0.00014709,2]
[393235768,1762365001869,-19.8993077,0.00014709,2]
[393235769,1762365001898,-278.0,0.00014999,2]
[393235771,1762365002349,-9404.2113846,0.00015,2]
[393235773,1762365017227,639.15317466,0.000149,2]
[393235779,1762365032206,-22065.23484538,0.00015,2]
[393235780,1762365032218,-10820.97979365,0.00015,2]
[393235781,1762365032230,-51724.42337423,0.00015,2]
[393235782,1762365032261,-3120.0,0.00015,2]
[393235783,1762365032273,-7515.8614566,0.00015,2]
[393235784,1762365032419,-34369.0701845,0.00015,2]
[393235787,1762365038309,-2139.40000018,0.00015,2]
[393235792,1762365041711,-1.7e-07,0.00015,2]
[393235793,1762365041722,-559354.79362831,0.00015,2]
[393235794,1762365041737,-159423.56297496,0.00015,2]
[393235805,1762365043685,-1350.0,0.00015,2]
[393235826,1762365046566,-3116.2,0.00015,2]
[393235827,1762365046620,-2228.3950065,0.00015,2]
[393235828,1762365046632,-7491.55416939,0.00015,2]
[393235829,1762365046642,-3395.74888,0.00015,2]
[393235830,1762365046653,-3297.73890006,0.00015,2]
[393235831,1762365046664,-4024.25261386,0.00015,2]
[393235832,1762365046675,-511.05,0.00015,2]
[393235833,1762365046687,-5422.7073035,0.00015,2]
[393235834,1762365046698,-1439.89765423,0.00015,2]
[393235835,1762365046709,-763.2125,0.00015,2]
[393235836,1762365046720,-3541.83402207,0.00015,2]
[393235840,1762365056907,302.63766833,0.00014999,2]
[393235841,1762365095952,-9058.21915701,0.00015,2]
[393235842,1762365096121,-10000.01,0.00015,2]
[393235843,1762365096891,-10000.01,0.00015,2]
[393235844,1762365096910,-10000.01,0.00015,2]
[393235845,1762365101874,-500.0,0.00014999,2]
[393235846,1762365101909,-9000.01,0.00015,2]
[393235847,1762365101998,-10000.01,0.00015,2]
[393235848,1762365102140,-10000.01,0.00015,2]
[393235849,1762365102257,-3439.7508287,0.00015,2]
[393235850,1762365102280,-3120.5083426,0.00015,2]
[393235851,1762365121161,-2365.75601512,0.00015,2]
[393235852,1762365121198,-5268.49796976,0.00015,2]
[393235853,1762365121366,-10000.01,0.00015,2]
[393235854,1762365121504,-10000.01,0.00015,2]
[393235855,1762365121650,-10000.01,0.00015,2]
[393235856,1762365121760,-10000.01,0.00015,2]
[393235857,1762365121907,-10000.01,0.00015,2]
[393235858,1762365121998,-10000.01,0.00015,2]
[393235859,1762365122080,-573.97184446,0.00015,2]
[393235860,1762365122166,-10000.01,0.00015,2]
[393235861,1762365122297,-10000.01,0.00015,2]
[393235863,1762365124071,-10000.01,0.00015,2]
[393235865,1762365127184,-10000.01,0.00015,2]
[393235866,1762365127310,-2715.97221842,0.00015,2]
[393235867,1762365127334,-4568.06556316,0.00015,2]
[393235868,1762365127411,-500.0,0.00015,2]
[393235870,1762365127441,-500.0,0.00015,2]
[393235871,1762365127472,-500.0,0.00015,2]
[393235872,1762365127502,-500.0,0.00015,2]
[393235873,1762365127531,-500.0,0.00015,2]
[393235874,1762365127561,-500.0,0.00015,2]
[393235875,1762365127588,-500.0,0.00015,2]
[393235876,1762365127618,-500.0,0.00015,2]
[393235877,1762365127645,-500.0,0.00015,2]
[393235878,1762365127673,-500.0,0.00015,2]
[393235879,1762365127764,-500.0,0.00015,2]
[393235880,1762365127792,-500.0,0.00015,2]
[393235883,1762365131843,254.1545887,0.00014999,2]
[393235886,1762365142911,162.31,7.57e-05,2]
[393235887,1762365143136,162.31,7.953e-05,2]
[393235888,1762365143377,162.31,8.335e-05,2]
[393235889,1762365143577,162.31,8.718e-05,2]
[393235890,1762365143813,162.31,9.101e-05,2]
[393235891,1762365144027,162.31,9.484e-05,2]
[393235892,1762365144242,162.31,9.867e-05,2]
[393235893,1762365144468,162.31,0.00010249,2]
[393235894,1762365144703,162.31,0.00010632,2]
[393235895,1762365144922,162.31,0.00011015,2]
[393235896,1762365145150,162.31,0.00011398,2]
[393235897,1762365145376,162.31,0.00011781,2]
[393235898,1762365145576,162.31,0.00012163,2]
[393235899,1762365146114,162.31,0.00012546,2]
[393235900,1762365146329,162.31,0.00012929,2]
[393235901,1762365146522,162.31,0.00013312,2]
[393235902,1762365146776,162.31,0.00013695,2]
[393235903,1762365147003,162.31,0.00014077,2]
[393235904,1762365147240,162.31,0.0001446,2]
[393235906,1762365160554,-162.31,0.00014843,2]
[393235908,1762365199470,200.0,0.00014791,2]
[393235916,1762365373530,5658.5,0.00014647,2]
[393235918,1762365391488,4141.51,0.00014634,2]
[393235919,1762365391514,10000.01,0.00014634,2]
[393235920,1762365391539,10000.01,0.00014634,2]
[393235921,1762365391564,10000.01,0.00014634,2]
[393235922,1762365391589,10000.01,0.00014634,2]
[393235923,1762365391613,5140.93,0.00014634,2]
[393235925,1762365421399,216.03,0.00014634,2]
[393235927,1762365446236,250.0,0.000146,2]
[393235929,1762365463715,-300.0,0.00015006,2]
[393235930,1762365463745,-2500.0,0.00015011,2]
[393235931,1762365463775,-250.0,0.00015021,2]
[393235932,1762365463803,-153.16294985,0.00015046,2]
[393235933,1762365463831,-166.67,0.00015157,2]
[393235934,1762365463859,-150.0,0.00015164,2]
[393235935,1762365463888,-1200.0,0.00015185,2]
[393235936,1762365463929,-151.0,0.00015185,2]
[393235937,1762365464933,-1962.5895116,0.00015186,2]
[393235938,1762365464976,-1606.9595116,0.00015186,2]
[393235939,1762365465007,-6786.0909768,0.00015186,2]
[393235940,1762365465051,-151.0,0.00015186,2]
[393235941,1762365465080,-151.0,0.00015187,2]
[393235942,1762365465109,-151.0,0.00015188,2]
[393235943,1762365465145,-166.66,0.00015202,2]
[393235944,1762365465178,-500.0,0.0001523,2]
[393235945,1762365465212,-500.0,0.0001523,2]
[393235946,1762365465246,-500.0,0.0001523,2]
[393235947,1762365465485,-245.4874109,0.0001523,2]
[393235948,1762365465520,-500.0,0.0001523,2]
[393235949,1762365465551,-500.0,0.0001523,2]
[393235950,1762365465582,-500.0,0.0001523,2]
[393235951,1762365465612,-500.0,0.0001523,2]
[393235952,1762365465644,-500.0,0.0001523,2]
[393235953,1762365465832,-380.66296109,0.0001523,2]
[393235954,1762365466309,-119.33703891,0.0001523,2]
[393235955,1762365466319,-150.37813929,0.00015231,2]
[393235956,1762365469504,-71.62186071,0.00015231,2]
[393235957,1762365469532,-800.0,0.00015231,2]
[393235958,1762365469560,-864.39,0.00015231,2]
[393235959,1762365469588,-555.0,0.00015233,2]
[393235960,1762365469658,-5417.98627858,0.00015239,2]
[393235961,1762365469685,-10000.01,0.00015239,2]
[393235962,1762365469775,-10000.01,0.00015239,2]
[393235963,1762365469886,-10000.01,0.00015239,2]
[393235964,1762365470050,-10000.01,0.00015239,2]
[393235965,1762365470187,-187.79627858,0.00015239,2]
[393235966,1762365470211,-9624.41744284,0.00015239,2]
[393235967,1762365470304,-250.0,0.00015264,2]
[393235968,1762365470334,-216.95,0.00015264,2]
[393235969,1762365470366,-562.37,0.00015302,2]
[393235970,1762365470396,-502.93416006,0.000154,2]
[393235971,1762365470427,-681.33041641,0.000154,2]
[393235972,1762365470456,-1591.73,0.00015484,2]
[393235973,1762365470554,-2389.38084706,0.00015486,2]
[393235974,1762365472511,-361.61915294,0.00015486,2]
[393235975,1762365472539,-698.44,0.000155,2]
[393235976,1762365472569,-166.66,0.0001551,2]
[393235977,1762365472596,-241.3192859,0.00015513,2]
[393235978,1762365472625,-698.44,0.000156,2]
[393235979,1762365472654,-1396.88,0.000156,2]
[393235980,1762365472681,-698.44,0.000156,2]
[393235981,1762365472708,-698.44,0.000156,2]
[393235982,1762365472804,-698.44,0.000156,2]
[393235983,1762365472832,-698.44,0.000156,2]
[393235984,1762365472860,-698.44,0.000156,2]
[393235985,1762365472889,-698.44,0.000156,2]
[393235986,1762365472918,-1626.18666,0.000156,2]
[393235987,1762365473011,-1626.18666,0.000156,2]
[393235988,1762365473042,-1626.18666,0.000156,2]
[393235989,1762365473071,-1626.18666,0.000156,2]
[393235990,1762365473125,-575.6459569,0.000156,2]
[393235991,1762365473299,-1050.5407031,0.000156,2]
[393235992,1762365473309,-189.10909922,0.000156,2]
[393235993,1762365473324,-242.89004,0.000156,2]
[393235994,1762365474855,-151.0,0.00015192,2]
[393235995,1762365474889,-74.40058273,0.000156,2]
[393235996,1762365478548,-1119.78693805,0.000156,2]
[393235997,1762365478581,-217.19588,0.000156,2]
[393235998,1762365478613,-217.19588,0.000156,2]
[393235999,1762365478642,-217.19588,0.000156,2]
[393236000,1762365478671,-217.19587,0.000156,2]
[393236001,1762365478700,-217.19588,0.000156,2]
[393236002,1762365478728,-217.19588,0.000156,2]
[393236003,1762365478759,-698.44,0.000156,2]
[393236004,1762365478787,-181.91466221,0.00015637,2]
[393236005,1762365478924,-3393.37625948,0.00015668,2]
[393236006,1762365484601,-4357.87374052,0.00015668,2]
[393236007,1762365484631,-166.66,0.00015817,2]
[393236008,1762365484660,-211.11369049,0.00015819,2]
[393236009,1762365484688,-28.71513798,0.00015828,2]
[393236010,1762365484754,-471.28486202,0.00015828,2]
[393236012,1762365487658,-250.0,0.00015742,2]
[393236013,1762365487689,-300.0,0.00015827,2]
[393236014,1762365487718,-334.31449745,0.00015828,2]
[393236015,1762365487748,-399.99474248,0.00015828,2]
[393236016,1762365487778,-291.58203651,0.00015828,2]
[393236017,1762365487878,-6848.22744712,0.00015829,2]
[393236018,1762365490779,-10000.01,0.00015829,2]
[393236019,1762365490984,-151.0,0.00015228,2]
[393236020,1762365491029,-9698.01,0.00015829,2]
[393236021,1762365491114,-1363.38865488,0.00015829,2]
[393236022,1762365491347,-681.33041641,0.000159,2]
[393236023,1762365491377,-293.61,0.00015915,2]
[393236024,1762365491407,-500.0,0.00015918,2]
[393236025,1762365491437,-166.67,0.00015991,2]
[393236026,1762365491524,-3772.5284269,0.00016014,2]